bitfinex/quotes_SOLUSD_20241222
["timestamp","ask_amount","ask_price","bid_price","bid_amount"]
[1734887275392,20.52036697,182.95,182.85,25.88786654]
[1734887275696,20.52036697,182.95,182.86,25.88786654]
[1734887275895,1.36850346,182.94,182.86,25.88786654]
[1734887276071,0.52036697,182.93,182.86,25.88786654]
[1734887276470,0.52036697,182.93,182.85,25.88786654]
[1734887277002,0.52036697,182.94,182.85,25.88786654]
[1734887277495,1.36856582,182.93,182.85,25.88786654]
[1734887277999,0.52036697,182.94,182.85,25.88786654]
[1734887279102,1.36846557,182.93,182.87,25.88786654]
[1734887279801,20.0,182.95,182.87,25.88786654]
[1734887280272,1.3684552,182.94,182.85,0.82002036]
[1734887280476,20.0,182.93,182.83,25.88786654]
[1734887280707,0.52036697,182.92,182.83,25.88786654]
[1734887280906,20.0,182.93,182.86,25.88786654]
[1734887281079,1.3684552,182.92,182.86,25.88786654]
[1734887281591,1.88882217,182.95,182.87,25.88786654]
[1734887281798,1.3684552,182.95,182.89,25.88786654]
[1734887281979,1.3684552,182.95,182.9,25.88786654]
[1734887282174,8.52200265,183.18,182.93,25.88786654]
[1734887282175,1.3684552,182.94,182.93,25.88786654]
[1734887282589,0.52036697,183.03,182.93,25.88786654]
[1734887283282,1.36804636,183.02,182.92,25.88786654]
[1734887283510,0.52036697,183.01,182.92,25.88786654]
[1734887283693,20.0,182.98,182.88,25.88786654]
[1734887283881,0.52036697,182.97,182.86,33.08822131]
[1734887284205,2.95504636,182.96,182.86,32.26846654]
[1734887284406,0.52036697,182.95,182.86,32.26846654]
[1734887284697,0.52036697,182.95,182.85,25.88786654]
[1734887285105,1.36804636,182.94,182.85,25.88786654]
[1734887285282,1.36804636,182.94,182.84,13.6731]
[1734887285283,0.52036697,182.93,182.84,25.88786654]
[1734887285486,0.52036697,182.93,182.83,25.88786654]
[1734887285683,1.36804636,182.92,182.84,25.88786654]
[1734887285901,1.36804636,182.92,182.87,25.88786654]
[1734887286206,1.36804636,182.91,182.87,25.88786654]
[1734887286707,1.36804636,182.9,182.87,25.88786654]
[1734887287081,1.36804636,182.9,182.86,25.88786654]
[1734887287390,1.36804636,182.89,182.84,13.6725]
[1734887287801,1.36804636,182.89,182.83,25.88786654]
[1734887288111,1.36804636,182.88,182.83,25.88786654]
[1734887288407,1.36804636,182.88,182.82,25.88786654]
[1734887288595,1.36804636,182.87,182.82,25.88786654]
[1734887288803,1.36804636,182.87,182.83,25.88786654]
[1734887288977,1.36804636,182.86,182.83,25.88786654]
[1734887289710,1.36804636,182.85,182.83,25.88786654]
[1734887290309,1.36804636,182.84,182.83,25.88786654]
[1734887291892,1.36804636,182.84,182.81,45.88786654]
[1734887292222,1.36804636,182.84,182.82,25.88786654]
[1734887292380,1.36804636,182.84,182.83,25.88786654]
[1734887292787,20.0,182.91,182.83,25.88786654]
[1734887293387,1.36865938,182.9,182.83,25.88786654]
[1734887293583,1.36865938,182.9,182.85,25.88786654]
[1734887293788,1.36865938,182.9,182.82,23.776884]
[1734887293789,1.36865938,182.9,182.86,25.88786654]
[1734887293989,1.36865938,182.89,182.83,25.88786654]
[1734887294203,1.36865938,182.89,182.82,45.88786654]
[1734887294410,1.36865938,182.89,182.82,25.88786654]
[1734887294597,0.52036697,182.93,182.82,25.88786654]
[1734887294598,1.36865938,182.88,182.82,25.88786654]
[1734887294998,1.36865938,182.87,182.82,25.88786654]
[1734887295631,1.36865938,182.86,182.82,25.88786654]
[1734887295932,1.08009281,182.86,182.82,25.88786654]
[1734887296297,0.52036697,182.9,182.82,25.88786654]
[1734887296496,0.52036697,182.9,182.83,25.88786654]
[1734887296704,0.52036697,182.9,182.82,25.88786654]
[1734887297599,0.52036697,182.9,182.79,2.4320727]
[1734887297799,21.587,182.87,182.78,25.88786654]
[1734887298021,20.52036697,182.86,182.75,25.88786654]
[1734887298319,20.52036697,182.86,182.72,20.0623]
[1734887298492,20.52036697,182.86,182.75,25.88786654]
[1734887299305,20.0,182.85,182.75,25.88786654]
[1734887299513,0.52036697,182.84,182.75,25.88786654]
[1734887300198,20.0,182.85,182.76,25.88786654]
[1734887300415,20.0,182.85,182.77,25.88786654]
[1734887300619,0.52036697,182.84,182.77,25.88786654]
[1734887300921,20.52036697,182.85,182.76,25.88786654]
[1734887301519,20.52036697,182.85,182.77,25.88786654]
[1734887301693,20.0,182.85,182.77,25.88786654]
[1734887301890,0.52036697,182.84,182.77,25.88786654]
[1734887302095,20.0,182.85,182.77,25.88786654]
[1734887302306,20.0,182.86,182.78,25.88786654]
[1734887302601,20.0,182.86,182.79,25.88786654]
[1734887304524,20.0,182.86,182.78,25.88786654]
[1734887305128,1.587,182.87,182.79,25.88786654]
[1734887305438,1.587,182.87,182.8,25.88786654]
[1734887305600,1.5123,182.91,182.82,25.88786654]
[1734887305803,1.5123,182.91,182.83,25.88786654]
[1734887306036,1.5123,182.91,182.84,25.88786654]
[1734887306520,1.5123,182.91,182.83,25.88786654]
[1734887307798,0.52036697,182.92,182.83,25.88786654]
[1734887307999,0.52036697,182.94,182.83,25.88786654]
[1734887308218,1.36859044,182.91,182.83,25.88786654]
[1734887308928,1.36859044,182.9,182.83,25.88786654]
[1734887309105,1.36859044,182.9,182.84,25.88786654]
[1734887309502,1.36859044,182.89,182.85,20.0]
[1734887309826,1.36859044,182.89,182.83,25.88786654]
[1734887310035,1.36859044,182.88,182.83,25.88786654]
[1734887310545,1.36859044,182.87,182.83,25.88786654]
[1734887311018,1.36859044,182.87,182.84,25.88786654]
[1734887311213,20.52036697,182.94,182.84,25.88786654]
[1734887311632,20.52036697,182.94,182.83,25.88786654]
[1734887311846,1.3686021,182.93,182.83,25.88786654]
[1734887312140,1.88896907,182.92,182.83,25.88786654]
[1734887312512,21.88896907,182.92,182.82,20.0]
[1734887312717,21.88896907,182.92,182.81,25.88786654]
[1734887312937,1.3686021,182.91,182.81,25.88786654]
[1734887313127,0.52036697,182.9,182.81,25.88786654]
[1734887313330,1.3686021,182.89,182.79,25.88786654]
[1734887313607,1.5123,182.87,182.78,25.88786654]
[1734887313852,0.52036697,182.86,182.78,25.88786654]
[1734887314026,20.52036697,182.86,182.78,25.88786654]
[1734887314322,20.0,182.86,182.78,25.88786654]
[1734887314517,1.3686021,182.85,182.79,25.88786654]
[1734887314841,1.3686021,182.85,182.81,25.88786654]
[1734887315049,1.3686021,182.84,182.83,25.88786654]
[1734887315423,1.3686021,182.84,182.83,49.66475054]
[1734887315624,1.5123,182.92,182.84,23.776884]
[1734887315625,1.3686021,182.9,182.84,23.776884]
[1734887315953,1.3686021,182.9,182.87,25.88786654]
[1734887316320,1.3686021,182.89,182.87,25.88786654]
[1734887316921,1.3686021,182.88,182.87,25.88786654]
[1734887317933,1.3686021,182.88,182.86,25.88786654]
[1734887318657,1.5123,182.92,182.86,25.88786654]
[1734887319245,1.36842328,182.91,182.86,25.88786654]
[1734887319761,1.36842328,182.9,182.86,25.88786654]
[1734887320358,1.36842328,182.9,182.87,25.88786654]
[1734887320547,1.36842328,182.89,182.87,25.88786654]
[1734887321080,1.36842328,182.88,182.87,25.88786654]
[1734887321460,1.36842328,182.88,182.86,25.88786654]
[1734887321959,1.5123,182.92,182.86,25.88786654]
[1734887322759,1.36846935,182.91,182.85,25.88786654]
[1734887323065,1.36846935,182.9,182.83,25.88786654]
[1734887323362,1.36846935,182.9,182.84,25.88786654]
[1734887323963,1.36846935,182.89,182.87,25.88786654]
[1734887324354,1.36846935,182.89,182.86,25.88786654]
[1734887324663,1.36846935,182.88,182.86,25.88786654]
[1734887325265,1.36846935,182.87,182.86,25.88786654]
[1734887325761,0.52036697,182.95,182.86,25.88786654]
[1734887325939,0.52036697,182.95,182.85,25.88786654]
[1734887326146,24.29725097,182.95,182.85,25.88786654]
[1734887326355,1.36857332,182.94,182.85,25.88786654]
[1734887326644,20.0,182.92,182.84,25.88786654]
[1734887326839,0.52036697,182.91,182.84,25.88786654]
[1734887327043,20.0,182.92,182.84,25.88786654]
[1734887327454,1.36857332,182.9,182.84,25.88786654]
[1734887327869,1.36857332,182.89,182.84,25.88786654]
[1734887328248,1.36857332,182.89,182.83,25.88786654]
[1734887328676,1.36857332,182.88,182.83,25.88786654]
[1734887328968,1.36857332,182.87,182.84,25.88786654]
[1734887329752,1.36857332,182.86,182.84,25.88786654]
[1734887330465,1.36857332,182.85,182.82,25.88786654]
[1734887331067,1.36857332,182.84,182.82,25.88786654]
[1734887331443,1.36857332,182.83,182.82,25.88786654]
[1734887331873,1.36857332,182.83,182.81,25.88786654]
[1734887332177,1.36857332,182.83,182.79,25.88786654]
[1734887332469,1.36857332,182.83,182.78,25.88786654]
[1734887333056,1.36857332,182.82,182.78,25.88786654]
[1734887333283,1.36857332,182.82,182.79,25.88786654]
[1734887333773,1.36857332,182.81,182.76,25.88786654]
[1734887333977,1.36857332,182.81,182.73,32.30396654]
[1734887334155,1.36857332,182.8,182.73,25.88786654]
[1734887334348,1.88894029,182.8,182.73,25.88786654]
[1734887334549,1.36857332,182.8,182.73,25.88786654]
[1734887334782,1.36857332,182.79,182.73,25.88786654]
[1734887335360,1.36857332,182.78,182.73,25.88786654]
[1734887335985,1.36857332,182.78,182.76,25.88786654]
[1734887336157,1.36857332,182.77,182.75,43.776884]
[1734887336352,1.5979,182.85,182.76,26.70836701]
[1734887336551,0.52036697,182.84,182.77,25.88786654]
[1734887336767,0.52036697,182.84,182.76,25.88786654]
[1734887336968,1.36909164,182.83,182.75,25.88786654]
[1734887337578,1.88945861,182.82,182.75,25.88786654]
[1734887337765,1.36909164,182.82,182.75,25.88786654]
[1734887338078,1.36909164,182.82,182.76,25.88786654]
[1734887338290,1.36909164,182.81,182.76,25.88786654]
[1734887338579,1.36909164,182.81,182.75,25.88786654]
[1734887338764,1.36909164,182.81,182.76,25.88786654]
[1734887338963,1.36909164,182.8,182.76,25.88786654]
[1734887339577,1.36909164,182.79,182.76,25.88786654]
[1734887339776,1.36909164,182.79,182.75,25.88786654]
[1734887339977,1.36909164,182.78,182.75,25.88786654]
[1734887340282,1.36909164,182.78,182.73,25.88786654]
[1734887340579,20.0,182.82,182.72,25.88786654]
[1734887340774,0.52036697,182.81,182.74,25.88786654]
[1734887341081,1.3692891,182.8,182.75,25.88786654]
[1734887341453,1.3692891,182.8,182.76,25.88786654]
[1734887341653,1.3692891,182.79,182.77,0.82044585]
[1734887341862,1.3692891,182.79,182.78,49.79024054]
[1734887342085,1.5979,182.9,182.78,77.21090708]
[1734887342378,1.5979,182.9,182.83,25.88786654]
[1734887342912,0.52036697,182.93,182.84,25.88786654]
[1734887343753,0.52036697,182.94,182.84,25.88786654]
[1734887344170,20.52036697,182.94,182.84,25.88786654]
[1734887344882,23.776884,182.93,182.82,25.88786654]
[1734887345181,0.52036697,182.92,182.82,25.88786654]
[1734887345480,0.52036697,182.92,182.81,25.88786654]
[1734887345686,20.0,182.9,182.79,25.88786654]
[1734887345986,20.0,182.9,182.8,25.88786654]
[1734887346181,20.0,182.9,182.81,25.88786654]
[1734887347486,0.52036697,182.89,182.81,25.88786654]
[1734887347656,0.52036697,182.89,182.8,25.88786654]
[1734887348265,20.0,182.9,182.81,25.88786654]
[1734887348588,0.52036697,182.89,182.81,25.88786654]
[1734887349683,20.52036697,182.89,182.79,25.88786654]
[1734887349883,1.5732,182.88,182.79,25.88786654]
[1734887350085,0.52036697,182.87,182.78,25.88786654]
[1734887350462,20.52036697,182.87,182.78,25.88786654]
[1734887350861,20.0,182.86,182.76,39.56686654]
[1734887351121,20.52036697,182.85,182.76,25.88786654]
[1734887353585,20.52036697,182.85,182.73,16.00240279]
[1734887353586,24.29725097,182.85,182.73,25.88786654]
[1734887353885,20.0,182.82,182.74,25.88786654]
[1734887354088,1.88957404,182.81,182.74,25.88786654]
[1734887354386,1.36920707,182.81,182.74,25.88786654]
[1734887354773,1.36920707,182.8,182.74,25.88786654]
[1734887355186,1.36920707,182.79,182.74,25.88786654]
[1734887355362,1.36920707,182.79,182.76,25.88786654]
[1734887355567,1.36920707,182.79,182.77,25.88786654]
[1734887356065,1.36920707,182.84,182.77,25.88786654]
[1734887356267,1.36920707,182.84,182.76,25.88786654]
[1734887356467,1.36920707,182.84,182.78,25.88786654]
[1734887356794,1.36920707,182.83,182.79,25.88786654]
[1734887357485,1.36920707,182.82,182.77,25.88786654]
[1734887357688,1.36920707,182.82,182.74,25.88786654]
[1734887358181,1.36920707,182.81,182.72,25.88786654]
[1734887358696,1.36920707,182.81,182.73,25.88786654]
[1734887358892,1.36920707,182.81,182.74,25.88786654]
[1734887359109,20.0,182.82,182.75,25.88786654]
[1734887359402,0.52036697,182.81,182.73,25.88786654]
[1734887359871,1.36924439,182.8,182.73,25.88786654]
[1734887360270,0.52036697,182.79,182.73,25.88786654]
[1734887360471,1.36924439,182.79,182.72,25.88786654]
[1734887361288,1.36924439,182.78,182.72,25.88786654]
[1734887361671,0.52036697,182.81,182.72,25.88786654]
[1734887361672,1.36924439,182.77,182.72,25.88786654]
[1734887361900,1.36924439,182.77,182.73,25.88786654]
[1734887362094,0.52036697,182.81,182.73,25.88786654]
[1734887362874,1.36935592,182.8,182.73,25.88786654]
[1734887363493,1.36935592,182.79,182.73,25.88786654]
[1734887364199,1.36935592,182.78,182.75,25.88786654]
[1734887364704,0.52036697,182.84,182.75,25.88786654]
[1734887365199,1.36917111,182.83,182.75,25.88786654]
[1734887365893,1.36917111,182.82,182.75,25.88786654]
[1734887366396,1.36917111,182.81,182.75,25.88786654]
[1734887367096,1.36917111,182.8,182.75,25.88786654]
[1734887367699,1.36917111,182.79,182.75,25.88786654]
[1734887368198,0.52036697,182.84,182.75,25.88786654]
[1734887369096,1.36917138,182.83,182.75,25.88786654]
[1734887369999,1.36917138,182.82,182.75,25.88786654]
[1734887370692,1.36917138,182.81,182.75,25.88786654]
[1734887370889,1.36917138,182.81,182.74,25.88786654]
[1734887371209,1.36917138,182.8,182.75,25.88786654]
[1734887371804,1.36917138,182.79,182.75,25.88786654]
[1734887372489,0.52036697,182.84,182.75,25.88786654]
[1734887372490,1.36917138,182.78,182.75,25.88786654]
[1734887372707,1.36917138,182.78,182.74,25.88786654]
[1734887373003,1.36917138,182.78,182.73,23.776884]
[1734887373004,0.52036697,182.84,182.75,25.88786654]
[1734887373318,20.0,182.82,182.69,13.6839]
[1734887373496,0.52036697,182.81,182.72,25.88786654]
[1734887374004,1.36927012,182.8,182.72,25.88786654]
[1734887374385,1.88963709,182.79,182.72,25.88786654]
[1734887374597,1.36927012,182.78,182.72,25.88786654]
[1734887375308,1.36927012,182.77,182.72,25.88786654]
[1734887375907,1.36927012,182.76,182.72,25.88786654]
[1734887376492,1.36927012,182.75,182.72,25.88786654]
[1734887376997,0.52036697,182.8,182.72,25.88786654]
[1734887377508,1.36935686,182.79,182.72,25.88786654]
[1734887377884,1.36935686,182.78,182.72,25.88786654]
[1734887378402,1.36935686,182.77,182.72,25.88786654]
[1734887378906,1.36935686,182.77,182.71,25.88786654]
[1734887379112,1.36935686,182.76,182.71,25.88786654]
[1734887379817,1.36935686,182.75,182.71,25.88786654]
[1734887380185,1.36935686,182.75,182.71,16.18931915]
[1734887380518,1.36935686,182.74,182.71,16.18931915]
[1734887381007,0.52036697,182.78,182.71,16.18931915]
[1734887381208,0.52036697,182.78,182.7,16.18931915]
[1734887381585,1.36948045,182.77,182.7,16.18931915]
[1734887382197,0.52036697,182.76,182.7,16.18931915]
[1734887382389,1.36948045,182.76,182.7,16.18931915]
[1734887382590,1.36948045,182.76,182.72,16.18931915]
[1734887382814,1.36948045,182.75,182.72,16.18931915]
[1734887383306,20.0,182.79,182.72,16.18931915]
[1734887383895,1.36941723,182.78,182.72,16.18931915]
[1734887384094,1.8897842,182.78,182.72,16.18931915]
[1734887384395,1.36941723,182.77,182.72,16.18931915]
[1734887384598,1.36941723,182.77,182.73,16.18931915]
[1734887384887,1.36941723,182.77,182.74,16.18931915]
[1734887385092,1.36941723,182.76,182.74,16.18931915]
[1734887385501,5.17726697,182.82,182.74,16.18931915]
[1734887386509,1.36927016,182.81,182.74,16.18931915]
[1734887387015,1.36927016,182.8,182.74,16.18931915]
[1734887387815,1.36927016,182.79,182.74,16.18931915]
[1734887388301,1.36927016,182.78,182.74,16.18931915]
[1734887388507,1.36927016,182.78,182.73,16.18931915]
[1734887389024,1.36927016,182.77,182.73,16.18931915]
[1734887389519,5.17726697,182.82,182.73,16.18931915]
[1734887389813,20.0,182.82,182.75,16.18931915]
[1734887390016,21.6485,182.83,182.76,16.18931915]
[1734887390222,1.36927901,182.81,182.76,16.18931915]
[1734887390401,1.36927901,182.81,182.77,16.18931915]
[1734887390609,21.6485,182.83,182.77,16.18931915]
[1734887391094,27.80340693,183.02,182.77,16.18931915]
[1734887391095,1.5451,182.87,182.8,16.18931915]
[1734887391419,4.6569,182.9,182.81,16.18931915]
[1734887392036,1.36883689,182.89,182.81,16.18931915]
[1734887392823,1.36883689,182.88,182.81,16.18931915]
[1734887393208,1.36883689,182.88,182.79,0.82029658]
[1734887393209,1.36883689,182.88,182.82,16.18931915]
[1734887393632,1.36883689,182.87,182.81,16.18931915]
[1734887393814,1.36883689,182.87,182.75,6.92822248]
[1734887394016,0.52036697,182.86,182.76,16.18931915]
[1734887394322,1.5451,182.85,182.75,16.18931915]
[1734887394500,0.52036697,182.84,182.75,16.18931915]
[1734887394927,1.36883689,182.83,182.75,16.18931915]
[1734887395221,1.5451,182.85,182.75,16.18931915]
[1734887395222,1.88920386,182.82,182.75,16.18931915]
[1734887395802,1.36883689,182.81,182.75,16.18931915]
[1734887396202,1.36883689,182.8,182.75,25.89248685]
[1734887396922,1.36883689,182.79,182.72,25.89248685]
[1734887397433,1.88920386,182.78,182.71,25.89248685]
[1734887397633,1.36883689,182.78,182.71,25.89248685]
[1734887397807,1.36883689,182.78,182.72,25.89248685]
[1734887398126,1.36883689,182.78,182.73,25.89248685]
[1734887398315,1.36883689,182.77,182.73,25.89248685]
[1734887398825,1.88920386,182.76,182.67,6.108]
[1734887399012,1.88920386,182.76,182.67,25.89248685]
[1734887399214,1.88920386,182.76,182.66,25.89248685]
[1734887399422,1.36883689,182.75,182.66,25.89248685]
[1734887399718,0.52036697,182.74,182.67,25.89248685]
[1734887399914,1.36883689,182.75,182.68,25.89248685]
[1734887400119,1.36883689,182.74,182.68,25.89248685]
[1734887400316,1.36883689,182.74,182.7,25.89248685]
[1734887400713,1.36883689,182.73,182.7,25.89248685]
[1734887401107,1.36883689,182.72,182.7,25.89248685]
[1734887401303,1.36883689,182.72,182.69,25.89248685]
[1734887401602,1.36883689,182.71,182.69,25.89248685]
[1734887402121,1.5451,182.77,182.69,25.89248685]
[1734887402631,2.06546697,182.77,182.69,25.89248685]
[1734887402930,1.36969879,182.76,182.69,25.89248685]
[1734887403426,1.36969879,182.75,182.69,25.89248685]
[1734887404108,1.36969879,182.74,182.68,25.89248685]
[1734887404328,1.36969879,182.74,182.66,25.89248685]
[1734887404633,1.36969879,182.73,182.66,25.89248685]
[1734887405214,1.36969879,182.72,182.66,25.89248685]
[1734887405411,1.36969879,182.72,182.7,25.89248685]
[1734887405719,1.36969879,182.72,182.71,26.71325331]
[1734887405925,2.09426697,182.81,182.71,26.71325331]
[1734887406122,2.09426697,182.81,182.72,25.89248685]
[1734887406331,1.5739,182.81,182.73,25.89248685]
[1734887406535,1.36951482,182.8,182.75,25.89248685]
[1734887406728,1.36951482,182.8,182.77,25.89248685]
[1734887406949,1.36951482,182.79,182.77,25.89248685]
[1734887407438,1.36951482,182.78,182.77,25.89248685]
[1734887408249,5.17726697,182.86,182.77,25.89248685]
[1734887408437,20.52036697,182.85,182.77,25.89248685]
[1734887408736,20.52036697,182.85,182.76,25.89248685]
[1734887408910,21.8895223,182.85,182.76,25.89248685]
[1734887409110,1.36915533,182.84,182.76,25.89248685]
[1734887409731,1.36915533,182.83,182.76,25.89248685]
[1734887410446,1.36915533,182.82,182.76,25.89248685]
[1734887410824,1.36915533,182.81,182.76,25.89248685]
[1734887411548,1.36915533,182.81,182.78,25.89248685]
[1734887411839,1.36915533,182.8,182.79,25.89248685]
[1734887412042,2.09426697,182.88,182.79,25.89248685]
[1734887412249,2.09426697,182.88,182.78,25.89248685]
[1734887412623,1.36900362,182.87,182.78,25.89248685]
[1734887412824,21.36900362,182.87,182.78,25.89248685]
[1734887413118,1.36900362,182.86,182.78,25.89248685]
[1734887413419,0.52036697,182.85,182.75,39.57168685]
[1734887413725,1.88937059,182.85,182.76,25.89248685]
[1734887414653,1.36900362,182.84,182.76,25.89248685]
[1734887415234,1.88937059,182.83,182.75,25.89248685]
[1734887415544,1.88937059,182.83,182.73,25.89248685]
[1734887415845,1.5739,182.81,182.7,25.89248685]
[1734887416157,0.52036697,182.8,182.7,25.89248685]
[1734887416342,1.88937059,182.8,182.71,25.89248685]
[1734887416541,1.88937059,182.8,182.72,25.89248685]
[1734887416961,1.36900362,182.79,182.72,25.89248685]
[1734887417758,1.36900362,182.78,182.72,25.89248685]
[1734887417937,1.88937059,182.78,182.7,25.89248685]
[1734887418246,1.36900362,182.77,182.7,25.89248685]
[1734887418449,0.52036697,182.76,182.69,25.89248685]
[1734887418695,0.52036697,182.76,182.67,25.89248685]
[1734887418958,1.88937059,182.76,182.68,25.89248685]
[1734887419323,1.36900362,182.75,182.68,25.89248685]
[1734887419925,0.86900362,182.74,182.69,25.89248685]
[1734887420638,0.52036697,182.77,182.69,25.89248685]
[1734887421156,0.52036697,182.77,182.68,25.89248685]
[1734887423277,0.52036697,182.77,182.69,25.89248685]
[1734887423579,2.09426697,182.81,182.73,25.89248685]
[1734887425550,1.5739,182.81,182.75,25.89248685]
[1734887425756,1.5565,182.85,182.77,25.89248685]
[1734887426350,0.52036697,182.88,182.78,25.89248685]
[1734887426554,0.52036697,182.88,182.79,25.89248685]
[1734887427653,1.5565,182.89,182.79,25.89248685]
[1734887427849,1.5565,182.89,182.8,25.89248685]
[1734887428279,20.52036697,182.88,182.8,25.89248685]
[1734887428462,20.52036697,182.88,182.79,25.89248685]
[1734887430089,20.52036697,182.88,182.78,39.56958685]
[1734887430560,20.52036697,182.88,182.79,25.89248685]
[1734887432557,1.36887055,182.87,182.79,25.89248685]
[1734887432958,0.52036697,182.86,182.78,25.89248685]
[1734887433149,1.88923752,182.86,182.78,25.89248685]
[1734887433349,1.88923752,182.86,182.77,25.89248685]
[1734887433981,1.36887055,182.85,182.79,25.89248685]
[1734887434367,1.36887055,182.84,182.79,25.89248685]
[1734887434556,1.36887055,182.84,182.8,25.89248685]
[1734887435169,1.36887055,182.87,182.8,25.89248685]
[1734887435685,1.36887055,182.87,182.78,14.49749246]
[1734887435686,1.88923752,182.86,182.79,25.89248685]
[1734887435979,1.88923752,182.86,182.77,25.89248685]
[1734887436281,1.36887055,182.85,182.78,25.89248685]
[1734887436694,1.36887055,182.85,182.79,25.89248685]
[1734887436862,1.36887055,182.84,182.79,25.89248685]
[1734887437283,1.36887055,182.83,182.79,25.89248685]
[1734887438077,1.36887055,182.86,182.79,25.89248685]
[1734887438282,0.52036697,182.85,182.77,25.89248685]
[1734887438483,1.36887055,182.85,182.78,25.89248685]
[1734887439162,1.36887055,182.84,182.78,25.89248685]
[1734887439360,1.36887055,182.84,182.79,25.89248685]
[1734887439782,1.36887055,182.83,182.79,25.89248685]
[1734887440257,20.0,182.88,182.8,16.17482729]
[1734887440458,1.5565,182.89,182.82,16.17482729]
[1734887441060,1.36877512,182.88,182.82,16.17482729]
[1734887441363,1.36877512,182.88,182.85,16.17482729]
[1734887441561,1.36877512,182.88,182.86,16.17482729]
[1734887441773,1.36877512,182.88,182.85,16.99483385]
[1734887441975,1.5565,182.93,182.84,29.84792729]
[1734887441976,1.36877512,182.87,182.84,29.84792729]
[1734887442286,1.36877512,182.87,182.84,39.53830258]
[1734887442460,1.5565,182.93,182.84,39.53830258]
[1734887442887,1.36855728,182.92,182.84,39.53830258]
[1734887443573,1.36855728,182.91,182.84,39.53830258]
[1734887443887,1.36855728,182.91,182.85,25.86520258]
[1734887444068,1.36855728,182.9,182.86,23.776884]
[1734887444575,1.36855728,182.9,182.85,26.68522315]
[1734887444775,1.36855728,182.92,182.85,25.86520258]
[1734887445292,1.36855728,182.91,182.85,26.68526937]
[1734887445664,1.36855728,182.9,182.85,26.68526937]
[1734887446065,1.36855728,182.9,182.85,25.86520258]
[1734887446290,21.5565,182.93,182.85,25.86520258]
[1734887446591,21.5565,182.93,182.85,25.36520258]
[1734887449182,0.52036697,182.92,182.83,25.86520258]
[1734887449390,0.52036697,182.92,182.82,25.86520258]
[1734887450190,0.52036697,182.92,182.83,25.86520258]
[1734887450390,0.52036697,182.92,182.84,25.86520258]
[1734887450693,20.52036697,182.92,182.83,25.86520258]
[1734887451992,20.52036697,182.92,182.82,25.86520258]
[1734887452367,20.0,182.88,182.8,25.86520258]
[1734887452666,0.52036697,182.87,182.79,25.86520258]
[1734887452867,0.52036697,182.87,182.8,25.86520258]
[1734887454895,1.5361,182.86,182.78,25.86520258]
[1734887455088,20.0,182.84,182.77,25.86520258]
[1734887455267,0.52036697,182.83,182.73,25.86520258]
[1734887455469,24.29725097,182.83,182.72,25.86520258]
[1734887455697,24.29725097,182.83,182.71,25.86520258]
[1734887455990,23.776884,182.79,182.7,25.86520258]
[1734887456215,0.52036697,182.78,182.69,25.86520258]
[1734887456394,0.52036697,182.78,182.71,25.86520258]
[1734887456575,20.0,182.76,182.7,25.86520258]
[1734887456774,0.52036697,182.75,182.7,25.86520258]
[1734887456990,0.52036697,182.75,182.69,25.86520258]
[1734887457914,0.52036697,182.75,182.62,0.8208882]
[1734887457915,20.52036697,182.75,182.62,6.3387]
[1734887458071,23.776884,182.74,182.64,25.86520258]
[1734887458276,20.0,182.71,182.63,25.86520258]
[1734887458475,0.52036697,182.7,182.62,25.86520258]
[1734887458779,24.29725097,182.7,182.61,25.86520258]
[1734887458977,24.29725097,182.7,182.6,25.86520258]
[1734887459198,20.0,182.67,182.6,25.86520258]
[1734887459493,6.1599,182.69,182.59,25.86520258]
[1734887459494,0.52036697,182.66,182.59,25.86520258]
[1734887459709,24.29725097,182.68,182.58,25.86520258]
[1734887459874,20.0,182.65,182.58,25.86520258]
[1734887460070,0.52036697,182.64,182.58,25.86520258]
[1734887460681,0.52036697,182.64,182.57,25.86520258]
[1734887460898,0.52036697,182.64,182.56,25.86520258]
[1734887461708,0.52036697,182.64,182.54,25.86520258]
[1734887462076,0.52036697,182.64,182.55,25.86520258]
[1734887462396,0.52036697,182.64,182.57,25.86520258]
[1734887462605,20.0,182.66,182.6,25.86520258]
[1734887463688,0.52036697,182.72,182.62,25.86520258]
[1734887463903,0.52036697,182.72,182.61,25.86520258]
[1734887464298,0.52036697,182.72,182.6,25.86520258]
[1734887464492,0.52036697,182.72,182.59,25.86520258]
[1734887464694,1.3700981,182.71,182.57,25.86520258]
[1734887464890,24.29725097,182.7,182.55,25.86520258]
[1734887465091,24.29725097,182.7,182.57,25.86520258]
[1734887465399,20.0,182.67,182.57,25.86520258]
[1734887465582,20.0,182.65,182.56,25.86520258]
[1734887465785,0.52036697,182.64,182.56,25.86520258]
[1734887465984,0.52036697,182.66,182.57,25.86520258]
[1734887467600,24.29725097,182.66,182.56,25.86520258]
[1734887467808,20.0,182.63,182.54,39.56010258]
[1734887468107,0.52036697,182.62,182.54,39.56010258]
[1734887468491,20.0,182.61,182.52,25.86520258]
[1734887468808,0.52036697,182.6,182.51,39.56300258]
[1734887469402,24.29725097,182.6,182.5,25.86520258]
[1734887469606,20.0,182.57,182.5,25.86520258]